bitfinex/quotes_SOLUSD_20240605
["timestamp","ask_amount","ask_price","bid_price","bid_amount"]
[1717598657775,2.1414,172.78,172.74,47.1419]
[1717598657985,2.1414,172.78,172.74,45.0]
[1717598658190,2.1413,172.79,172.74,47.1419]
[1717598660897,2.3115,172.78,172.74,45.0]
[1717598661197,0.17,172.77,172.73,2.142]
[1717598661381,0.34,172.77,172.73,2.142]
[1717598663292,0.34,172.77,172.71,24.6845]
[1717598663500,0.34,172.77,172.73,2.142]
[1717598663797,0.34,172.77,172.73,22.142]
[1717598664799,2.4815,172.77,172.73,22.142]
[1717598664965,0.34,172.77,172.71,0.4]
[1717598665169,2.1418,172.75,172.71,0.4]
[1717598668118,2.1419,172.74,172.71,0.4]
[1717598670190,2.3118,172.75,172.71,0.4]
[1717598671284,0.17,172.75,172.71,0.4]
[1717598671490,2.1419,172.74,172.71,0.4]
[1717598674196,2.1421,172.72,172.71,0.4]
[1717598674819,2.1421,172.73,172.71,0.4]
[1717598675317,2.1421,172.72,172.71,0.4]
[1717598675521,0.17,172.72,172.71,0.4]
[1717598675894,2.142,172.74,172.71,0.4]
[1717598676100,0.34,172.73,172.71,0.4]
[1717598676596,10.708,172.77,172.71,0.4]
[1717598676597,2.1418,172.75,172.71,0.4]
[1717598679225,0.34,172.76,172.71,2.5422]
[1717598679410,2.1415,172.78,172.73,2.1419]
[1717598679721,2.1415,172.78,172.74,2.1419]
[1717598680214,2.1415,172.78,172.73,2.142]
[1717598680415,2.1415,172.78,172.74,2.1419]
[1717598680623,2.1415,172.78,172.73,2.1419]
[1717598680806,6.4232,172.81,172.74,2.1419]
[1717598681003,2.1414,172.79,172.74,2.1419]
[1717598681213,2.1414,172.79,172.75,2.1418]
[1717598682527,2.1414,172.79,172.74,2.1418]
[1717598682709,2.1414,172.78,172.74,2.1418]
[1717598683305,2.1414,172.78,172.73,8.3413]
[1717598683499,2.1415,172.77,172.74,45.0]
[1717598683714,2.1415,172.78,172.74,47.1419]
[1717598684021,2.1415,172.78,172.74,45.0]
[1717598684321,2.1415,172.78,172.74,47.1419]
[1717598685725,2.1415,172.78,172.74,45.0]
[1717598687323,4.2824,172.8,172.74,45.0]
[1717598687324,2.1413,172.79,172.74,47.1419]
[1717598687507,2.1414,172.78,172.74,45.0]
[1717598687704,2.1414,172.79,172.74,45.0]
[1717598688114,2.1414,172.78,172.74,45.0]
[1717598689416,2.1414,172.79,172.74,45.0]
[1717598689713,2.1414,172.78,172.74,45.0]
[1717598690719,2.1413,172.79,172.74,47.1419]
[1717598691031,2.1414,172.78,172.74,45.0]
[1717598691706,2.1413,172.79,172.74,53.454]
[1717598693313,2.1414,172.78,172.74,51.3121]
[1717598693936,2.1413,172.79,172.74,53.454]
[1717598694104,0.17,172.8,172.74,51.3121]
[1717598694307,2.1412,172.8,172.75,8.7699]
[1717598694631,2.1411,172.81,172.76,47.1416]
[1717598695221,2.1412,172.8,172.76,47.1416]
[1717598695631,2.1411,172.81,172.76,47.1416]
[1717598696612,10.7043,172.83,172.76,45.0]
[1717598696613,2.1412,172.8,172.76,45.0]
[1717598697841,2.1412,172.8,172.76,47.1416]
[1717598698040,1.1027606,172.82,172.71,6.9516]
[1717598698220,4.2827,172.79,172.72,20.0]
[1717598698425,2.1417,172.76,172.71,9.0938]
[1717598699230,2.1416,172.77,172.72,2.1421]
[1717598699540,2.1416,172.77,172.72,47.1421]
[1717598699738,0.34,172.78,172.72,45.0]
[1717598699942,2.1417,172.76,172.72,45.0]
[1717598700146,2.1417,172.76,172.71,9.0938]
[1717598700335,2.1419,172.74,172.71,0.4]
[1717598700647,2.3118,172.75,172.71,0.4]
[1717598701841,2.1419,172.74,172.71,0.4]
[1717598702029,2.3118,172.75,172.71,0.4]
[1717598702340,2.1418,172.75,172.71,0.4]
[1717598703118,2.1419,172.74,172.71,0.4]
[1717598703850,4.2827,172.79,172.71,6.4036]
[1717598704143,2.1416,172.77,172.72,53.1457]
[1717598705539,2.1418,172.75,172.72,45.0]
[1717598705821,2.1417,172.76,172.72,45.0]
[1717598706914,0.17,172.77,172.72,45.0]
[1717598706915,2.1418,172.75,172.72,45.0]
[1717598707116,2.1417,172.76,172.72,45.0]
[1717598707332,2.1418,172.75,172.72,45.0]
[1717598707732,2.1419,172.74,172.71,0.4]
[1717598709323,6.4252,172.76,172.71,0.4]
[1717598709643,2.1421,172.73,172.71,0.4]
[1717598710121,0.34,172.75,172.71,0.4]
[1717598710329,2.1421,172.72,172.71,0.4]
[1717598710741,2.1421,172.73,172.71,0.4]
[1717598711453,0.34,172.75,172.71,0.4]
[1717598711454,2.3121,172.72,172.71,0.4]
[1717598711626,2.4821,172.72,172.71,0.4]
[1717598712250,21.7616,172.72,172.71,0.4]
[1717598712467,2.4821,172.72,172.71,0.4]
[1717598713434,8.4937,172.72,172.71,0.4]
[1717598713649,28.4937,172.72,172.71,0.4]
[1717598713988,47.7732,172.72,172.71,0.4]
[1717598714177,63.727,172.72,172.71,0.4]
[1717598714664,4.2854,172.68,172.61,0.4]
[1717598714850,0.34,172.67,172.61,0.4]
[1717598715235,2.1432,172.64,172.61,0.4]
[1717598715663,2.143,172.65,172.61,0.4]
[1717598716757,2.1431,172.64,172.61,0.4]
[1717598717860,2.1433,172.63,172.61,0.4]
[1717598718365,2.1432,172.64,172.61,0.4]
[1717598718836,2.143,172.66,172.61,0.4]
[1717598719044,2.1428,172.68,172.61,2.5434]
[1717598719261,2.1428,172.68,172.62,2.1434]
[1717598719436,6.4272,172.71,172.61,0.4]
[1717598719638,2.1427,172.68,172.62,2.1433]
[1717598719866,2.1428,172.67,172.61,2.5435]
[1717598720669,2.1429,172.66,172.61,2.5435]
[1717598722174,2.1428,172.67,172.61,2.5435]
[1717598722836,2.1431,172.65,172.61,0.4]
[1717598724967,2.1432,172.64,172.61,0.4]
[1717598728377,0.34,172.66,172.61,0.4]
[1717598728566,2.1434,172.62,172.61,0.4]
[1717598728750,2.1433,172.63,172.61,0.4]
[1717598731889,3.0161606,172.62,172.61,0.4]
[1717598732773,2.4834,172.62,172.61,0.4]
[1717598734379,2.1433,172.63,172.61,0.4]
[1717598734553,2.1429,172.67,172.61,0.4]
[1717598734750,6.4269,172.72,172.61,0.4]
[1717598734955,2.1423,172.71,172.65,2.143]
[1717598735156,2.1424,172.7,172.65,2.143]
[1717598735460,2.1425,172.69,172.64,8.7951]
[1717598735978,0.5327606,172.75,172.64,6.652]
[1717598736175,2.1428,172.67,172.62,2.1433]
[1717598736509,2.1429,172.66,172.61,8.6624]
[1717598737282,4.2853,172.69,172.62,2.1433]
[1717598737584,0.34,172.68,172.62,2.1433]
[1717598737879,2.1428,172.67,172.62,2.1433]
[1717598738050,0.34,172.68,172.61,6.5189]
[1717598738051,5.1581606,172.68,172.61,6.5189]
[1717598738251,2.143,172.65,172.61,0.4]
[1717598738663,6.7681,172.68,172.61,0.4]
[1717598738862,2.1431,172.65,172.61,0.4]
[1717598740083,2.1432,172.64,172.61,0.4]
[1717598740868,2.1431,172.65,172.61,0.4]
[1717598741659,2.6758606,172.65,172.61,0.4]
[1717598741892,2.1431,172.65,172.61,0.4]
[1717598742083,8.9119,172.66,172.61,0.4]
[1717598742271,2.1434,172.62,172.61,0.4]
[1717598743208,2.1433,172.63,172.61,0.4]
[1717598745891,2.3132,172.64,172.61,0.4]
[1717598747276,2.1429,172.66,172.61,9.0266]
[1717598747595,2.143,172.66,172.61,9.0267]
[1717598748314,2.143,172.65,172.61,6.8832]
[1717598748672,2.1431,172.64,172.61,0.4]
[1717598748885,2.1431,172.65,172.61,0.4]
[1717598749100,2.1429,172.66,172.62,6.5797]
[1717598749305,2.1425,172.7,172.64,2.143]
[1717598749480,2.1425,172.69,172.65,2.143]
[1717598750595,2.1425,172.69,172.65,8.2931]
[1717598750789,2.1427,172.68,172.65,6.1501]
[1717598751515,2.1427,172.68,172.62,4.2867]
[1717598751516,4.8176606,172.7,172.63,2.1432]
[1717598751679,2.1428,172.67,172.62,8.7697]
[1717598752075,2.1428,172.67,172.63,6.6264]
[1717598752685,2.1428,172.67,172.63,8.7697]
[1717598752887,2.1428,172.67,172.63,6.6264]
[1717598754200,2.1427,172.68,172.64,2.1431]
[1717598754410,2.4826,172.69,172.64,8.7126]
[1717598755390,2.1427,172.68,172.64,8.7126]
[1717598755590,2.1427,172.68,172.64,6.5695]
[1717598755789,2.1427,172.68,172.64,8.7126]
[1717598756185,2.1427,172.68,172.64,6.5695]
[1717598756999,2.1428,172.67,172.64,6.5695]
[1717598757320,2.1427,172.68,172.64,6.5695]
[1717598757977,2.1428,172.67,172.64,6.5695]
[1717598758710,2.1428,172.67,172.62,2.1433]
[1717598758905,2.1429,172.66,172.61,20.4]
[1717598759208,2.143,172.65,172.61,6.6114]
[1717598759501,2.143,172.65,172.61,8.7549]
[1717598760004,2.143,172.66,172.61,8.7549]
[1717598760502,4.2853,172.69,172.63,8.7811]
[1717598760700,20.0,172.7,172.64,2.1431]
[1717598760911,2.1426,172.69,172.65,2.143]
[1717598761207,2.1426,172.69,172.64,2.1431]
[1717598761403,2.1426,172.68,172.64,8.781]
[1717598761600,2.1426,172.69,172.64,8.781]
[1717598761898,4.2848,172.71,172.64,8.781]
[1717598761899,2.1426,172.68,172.64,8.781]
[1717598762404,2.1425,172.69,172.64,8.781]
[1717598763313,2.1424,172.7,172.66,6.4807]
[1717598763679,2.1421,172.73,172.68,2.1425]
[1717598763886,2.142,172.73,172.68,2.1425]
[1717598764208,2.1422,172.72,172.68,2.1425]
[1717598764822,6.4252,172.76,172.69,8.5257]
[1717598765109,10.7082,172.77,172.7,8.5255]
[1717598765410,2.1419,172.74,172.7,6.3832]
[1717598765707,2.1418,172.75,172.7,8.5256]
[1717598765911,2.1417,172.76,172.68,14.9985]
[1717598766098,2.1417,172.76,172.72,6.4875]
[1717598766592,2.1416,172.77,172.73,6.0789]
[1717598766788,2.1415,172.78,172.73,8.2209]
[1717598766986,10.7061,172.8,172.73,6.0789]
[1717598767306,2.1416,172.77,172.73,6.0789]
[1717598767506,2.1411,172.81,172.76,2.1416]
[1717598767684,2.1412,172.8,172.75,2.1417]
[1717598767893,11.1039,172.84,172.75,6.3122]
[1717598768116,2.1411,172.81,172.76,2.1416]
[1717598768410,4.2816,172.83,172.75,6.3122]
[1717598768610,2.1413,172.79,172.75,6.3122]
[1717598768906,2.141,172.82,172.77,2.1415]
[1717598769119,2.141,172.82,172.78,6.3122]
[1717598769305,2.141,172.81,172.78,6.3122]
[1717598769491,2.141,172.81,172.76,6.3122]
[1717598769692,2.1412,172.8,172.76,6.3122]
[1717598770994,2.1414,172.78,172.74,6.5924]
[1717598771715,2.1415,172.77,172.74,6.5924]
[1717598771893,2.1415,172.77,172.72,8.6417]
[1717598772306,2.1415,172.77,172.73,8.6416]
[1717598772493,2.1415,172.78,172.73,8.6416]
[1717598772699,2.1415,172.77,172.73,6.4996]
[1717598772896,2.1417,172.76,172.71,8.6027]
[1717598773699,2.1417,172.76,172.72,2.1421]
[1717598774208,2.1416,172.77,172.72,2.1421]
[1717598774607,0.34,172.79,172.72,2.1421]
[1717598774812,2.1416,172.76,172.72,2.1421]
[1717598775005,2.1416,172.77,172.73,2.142]
[1717598775197,2.1414,172.78,172.73,2.142]
[1717598775396,2.4816,172.77,172.72,2.1421]
[1717598775594,2.1416,172.77,172.72,2.1421]
[1717598776901,2.1417,172.76,172.72,2.1421]
[1717598777420,2.1418,172.75,172.71,2.1422]
[1717598777615,2.1417,172.76,172.71,2.1422]
[1717598777815,2.1419,172.74,172.69,6.5099]
[1717598778003,2.1419,172.74,172.7,2.1424]
[1717598778214,2.3118,172.75,172.7,2.1424]
[1717598778407,0.17,172.74,172.71,2.1423]
[1717598778919,12.8468,172.81,172.73,2.1419]
[1717598779106,2.1415,172.78,172.73,8.7756]
[1717598779308,0.34,172.77,172.74,2.1419]
[1717598779502,20.0,172.8,172.74,2.1419]
[1717598779708,2.1409,172.83,172.75,4.2834]
[1717598779909,2.1412,172.8,172.73,10.9177]
[1717598780108,6.8221,172.84,172.73,6.6337]
[1717598780109,0.5327606,172.82,172.73,6.6337]
[1717598780414,2.1415,172.78,172.73,8.7757]
[1717598780742,2.1413,172.8,172.75,2.1418]
[1717598781094,0.17,172.79,172.75,2.1418]
[1717598781298,0.17,172.79,172.75,8.7755]
[1717598782003,2.1413,172.8,172.76,2.1416]
[1717598782519,2.4811,172.81,172.77,2.1415]
[1717598782825,2.1408,172.83,172.76,4.2833]
[1717598783044,2.1408,172.83,172.78,2.1413]
[1717598783604,2.5407,172.84,172.8,6.077]
[1717598784110,2.5408,172.84,172.8,6.077]
[1717598784420,2.5408,172.84,172.8,8.2182]
[1717598784805,0.4,172.84,172.8,6.077]
[1717598785125,0.4,172.84,172.8,8.2181]
[1717598785833,0.4,172.84,172.81,8.3904]
[1717598788814,0.4,172.84,172.83,48.6697]
[1717598789046,0.4,172.84,172.83,32.722]
[1717598791706,0.4,172.84,172.83,28.4404]
[1717598792732,0.4,172.84,172.83,2.1408]
[1717598793505,0.4,172.84,172.8,2.1411]
[1717598793813,0.4,172.84,172.78,6.6069]
[1717598793814,2.5407,172.84,172.79,2.1412]
[1717598794635,0.4,172.84,172.78,10.8897]
[1717598794934,0.4,172.84,172.81,2.141]
[1717598796837,2.3108,172.83,172.76,4.2833]
[1717598797013,0.17,172.83,172.79,2.1412]
[1717598797636,2.3108,172.83,172.79,2.1412]
[1717598797939,2.3108,172.83,172.76,4.2833]
[1717598798232,2.3108,172.83,172.79,2.1412]
[1717598798435,0.17,172.83,172.79,2.1412]
[1717598800016,2.3108,172.83,172.79,2.1412]
[1717598800514,2.3108,172.83,172.78,2.1413]
[1717598800713,2.3108,172.83,172.79,2.1413]
[1717598802118,2.5407,172.84,172.8,2.1411]
[1717598803227,2.5407,172.84,172.79,2.1412]
[1717598803455,2.1408,172.83,172.79,2.1412]
[1717598804220,2.1408,172.83,172.78,2.1413]
[1717598804718,2.1408,172.83,172.79,2.1413]
[1717598805436,2.1408,172.83,172.78,2.1413]
[1717598805641,2.1409,172.82,172.78,2.1413]
[1717598806034,2.1408,172.83,172.78,2.1413]
[1717598807237,0.4,172.84,172.78,2.1413]
[1717598807446,2.3108,172.83,172.79,2.1413]
[1717598808621,2.3108,172.83,172.76,17.0188]
[1717598808622,2.5407,172.84,172.8,2.1411]
[1717598809356,2.5407,172.84,172.79,2.1412]
[1717598809521,2.5407,172.84,172.8,2.1411]
[1717598810344,0.4,172.84,172.82,2.1409]
[1717598810547,0.4,172.84,172.82,2.1408]
[1717598811437,0.4,172.84,172.83,2.1408]
[1717598814037,0.4,172.84,172.83,6.4224]
[1717598815030,0.4,172.84,172.83,12.8448]
[1717598815543,0.4,172.84,172.83,18.9553]
[1717598815946,0.4,172.84,172.83,12.5329]
[1717598818327,0.4,172.84,172.83,2.1408]
[1717598824839,0.4,172.84,172.83,6.4224]
[1717598825253,0.4,172.84,172.83,2.1408]
[1717598827561,0.4,172.84,172.77,6.4247]
[1717598827861,2.5407,172.84,172.8,2.1411]
[1717598828235,0.4,172.84,172.81,2.141]
[1717598828443,0.4,172.84,172.78,26.4242]
[1717598828444,0.4,172.84,172.83,2.1408]
[1717598829438,0.4,172.84,172.83,6.4224]
[1717598829664,0.4,172.84,172.83,21.4081]
[1717598830273,0.4,172.84,172.83,47.5138]
[1717598831437,0.4,172.84,172.83,62.6878]
[1717598832053,0.4,172.84,172.83,47.5138]
[1717598833165,0.4,172.84,172.83,64.0991]
[1717598833346,0.4,172.84,172.83,64.2691]
[1717598833733,0.4,172.84,172.83,64.4391]
[1717598834547,43.87312579,172.91,172.9,2.1399]
[1717598837271,43.87312579,172.91,172.89,2.14]
[1717598838066,43.87312579,172.91,172.9,2.1399]
[1717598839371,43.87312579,172.91,172.89,2.14]
[1717598839868,43.87312579,172.91,172.87,24.2806]
[1717598839869,43.87312579,172.91,172.88,2.1401]
[1717598840173,43.37312579,172.91,172.87,2.1402]
[1717598840347,43.37312579,172.91,172.88,2.1401]
[1717598843195,45.51292579,172.91,172.87,2.1402]
[1717598843679,43.37312579,172.91,172.87,2.1402]
[1717598843868,43.37312579,172.91,172.88,2.1402]
[1717598844882,43.37312579,172.91,172.88,2.1401]
[1717598848060,43.37312579,172.91,172.87,2.1403]
[1717598848271,43.37312579,172.91,172.88,2.1401]
[1717598850574,43.37312579,172.91,172.89,2.14]
[1717598851674,43.37312579,172.91,172.88,2.1401]
[1717598852074,43.37312579,172.91,172.89,2.14]
[1717598852986,43.37312579,172.91,172.88,2.1401]
[1717598854117,43.37312579,172.91,172.89,2.14]
[1717598854472,43.37312579,172.91,172.9,2.1399]
[1717598855589,43.37312579,172.91,172.87,14.9821]
[1717598855764,43.37312579,172.91,172.9,2.1399]
[1717598857172,43.37312579,172.91,172.9,6.4198]
[1717598858263,43.37312579,172.91,172.9,41.3994]
[1717598860185,43.37312579,172.91,172.9,26.4198]
[1717598861991,43.37312579,172.91,172.9,32.8396]
[1717598862200,43.37312579,172.91,172.9,41.3994]
[1717598863188,43.37312579,172.91,172.9,47.6641]
[1717598865610,43.37312579,172.91,172.9,47.8341]
[1717598865988,43.37312579,172.91,172.9,63.7457]
[1717598866196,43.37312579,172.91,172.9,63.9157]
[1717598869131,25.37307369,172.91,172.9,71.34715341]
[1717598869407,21.90336973,172.91,172.9,71.34715341]
[1717598869581,20.16851775,172.91,172.9,71.34715341]
[1717598869787,18.43366577,172.91,172.9,71.34715341]
[1717598870009,16.69911464,172.91,172.9,71.34715341]
[1717598870219,14.96456351,172.91,172.9,71.34715341]
[1717598870507,13.23001238,172.91,172.9,77.60670869]
[1717598870810,11.49546125,172.91,172.9,77.60670869]
[1717598871107,8.02635899,172.91,172.9,77.60670869]
[1717598871402,7.86e-06,172.91,172.9,77.60670869]
[1717598871594,2.1383,173.03,172.91,29.47095341]
[1717598871800,2.5382,173.04,173.0,2.1387]
[1717598872188,2.1383,173.03,173.0,2.1387]
[1717598872383,2.5382,173.04,173.0,2.1387]
[1717598873710,2.5382,173.04,173.0,2.1386]
[1717598876314,0.4,173.04,173.0,10.6933]
[1717598876518,0.4,173.04,173.03,2.1383]
[1717598876812,0.4,173.04,173.01,2.1385]
[1717598877011,0.4,173.04,173.02,2.1384]
[1717598877823,0.4,173.04,173.03,2.1383]
[1717598881107,2.5383,173.04,173.0,2.1386]
[1717598881418,2.1384,173.02,172.99,2.1387]
[1717598881619,8.4636,173.03,172.99,2.1387]
[1717598881793,0.4,173.04,172.99,6.4164]
[1717598882118,0.4,173.04,173.03,6.415]
[1717598883127,0.4,173.04,173.03,22.1383]
[1717598884202,0.4,173.04,173.03,32.83]
[1717598884722,0.4,173.04,173.03,14.9684]
[1717598885099,0.4,173.04,173.03,6.415]
[1717598887905,0.4,173.04,173.03,2.1383]
[1717598890421,0.4,173.04,173.03,21.3834]
[1717598890614,0.4,173.04,173.03,41.7234]
[1717598891512,0.4,173.04,173.03,41.3834]
[1717598892118,0.4,173.04,173.03,41.5534]
[1717598892520,0.4,173.04,173.03,48.2923]
[1717598893025,0.4,173.04,173.03,41.7234]
[1717598893207,0.4,173.04,173.03,41.3834]
[1717598896330,0.4,173.04,173.03,41.7234]
[1717598896729,0.4,173.04,173.03,41.3834]
[1717598906353,0.4,173.04,173.03,47.666]
[1717598906714,0.4,173.04,173.03,47.836]
[1717598906939,0.4,173.04,173.03,48.006]
[1717598909245,0.4,173.04,173.03,41.3834]
[1717598912426,0.4,173.04,173.03,47.9501]
[1717598912734,0.4,173.04,173.03,41.7234]
[1717598913942,0.4,173.04,173.03,41.5534]
[1717598914170,0.4,173.04,173.03,41.3834]
[1717598914524,0.4,173.04,173.03,41.7234]
[1717598914725,0.8182946,173.06,173.05,21.381]
[1717598914934,0.8182946,173.06,173.05,41.721]
[1717598917756,0.03607684,173.08,173.07,12.827]
[1717598917967,0.03607684,173.08,173.07,41.7184]
[1717598920471,0.03607684,173.08,173.07,48.2813]
[1717598921249,0.03607684,173.08,173.07,41.7184]
[1717598922950,7.684e-05,173.08,173.07,48.16]
[1717598923678,7.684e-05,173.08,173.07,55.59145341]
[1717598924446,7.684e-05,173.08,173.07,53.45365341]
[1717598924650,7.684e-05,173.08,173.07,55.59145341]
[1717598924881,0.4,173.14,173.13,12.8226]
[1717598925178,0.4,173.14,173.13,21.371]
[1717598925473,0.4,173.14,173.13,41.371]
[1717598928264,0.4,173.14,173.13,26.4113]
[1717598928674,0.4,173.14,173.13,32.8226]
[1717598929959,0.4,173.14,173.13,26.4113]
[1717598930675,0.4,173.14,173.13,32.8226]
[1717598931257,0.4,173.14,173.13,41.371]
[1717598931752,0.4,173.14,173.13,41.541]
[1717598933188,7.1269946,173.23,173.13,26.6183]
[1717598933484,7.1269946,173.23,173.18,6.4094]
[1717598933670,7.1269946,173.23,173.21,2.136]
[1717598933872,7.1269946,173.23,173.22,2.136]
[1717598934255,0.8182946,173.23,173.22,2.136]
[1717598935268,21.7548,173.22,173.2,2.1361]
[1717598935486,6.4252,173.19,173.13,4.274]
[1717598935688,6.4252,173.18,173.15,2.1368]
[1717598936094,15.3296,173.19,173.13,4.274]
[1717598936298,6.2762,173.18,173.15,2.1368]
[1717598936484,6.2762,173.18,173.16,2.1367]
[1717598937099,6.2762,173.18,173.15,2.1368]
[1717598937498,6.2762,173.18,173.16,2.1367]
[1717598938907,6.2762,173.18,173.15,2.1368]
[1717598939084,6.2762,173.18,173.14,20.0]
[1717598939288,6.2762,173.18,173.16,2.1367]
[1717598940733,6.2762,173.18,173.13,10.6853]
[1717598940734,22.8552,173.16,173.13,2.137]
[1717598941009,6.5317,173.15,173.13,2.1371]
[1717598941514,6.5317,173.16,173.08,4.2753]
[1717598941684,8.588,173.14,173.11,2.1372]
[1717598941887,6.451,173.14,173.1,2.1374]
[1717598942095,8.588,173.14,173.1,2.1374]
[1717598942284,24.8211,173.14,173.11,2.1373]
[1717598942491,22.6841,173.14,173.11,2.1373]
[1717598942797,22.6841,173.14,173.1,2.1374]
[1717598943002,10.817,173.18,173.12,2.1372]
[1717598943311,2.1367,173.16,173.12,2.1371]
[1717598943481,8.6806,173.16,173.12,2.1371]
[1717598943909,2.1368,173.15,173.12,2.1371]
[1717598944095,6.5439,173.16,173.13,2.137]
[1717598944412,8.6806,173.16,173.12,2.1371]
[1717598945514,25.1838,173.16,173.12,2.1371]
[1717598945712,6.0053,173.14,173.11,2.1373]
[1717598946300,6.6038,173.12,173.1,22.1374]
[1717598946617,6.6038,173.12,173.1,2.1374]
[1717598946986,6.6038,173.12,173.08,24.2754]
[1717598946987,6.6038,173.12,173.11,2.1373]
[1717598947502,6.6038,173.12,173.1,2.1374]
[1717598947987,6.6038,173.12,173.11,2.1373]
[1717598948394,6.6038,173.12,173.11,47.1373]
[1717598948916,16.0024,173.13,173.11,47.1373]
[1717598949511,16.0024,173.13,173.12,2.1372]
[1717598949727,6.4079,173.14,173.12,47.1372]
[1717598950028,8.545,173.14,173.08,4.2754]
[1717598950191,15.9547,173.13,173.1,2.1374]
[1717598950387,22.1407,173.13,173.1,2.1374]
[1717598951493,6.4469,173.12,173.09,47.1375]
[1717598951695,17.0610606,173.11,173.05,12.8284]
[1717598952007,21.9904,173.1,173.06,20.0]
[1717598952211,21.9904,173.1,173.07,2.1378]
[1717598952696,21.9904,173.1,173.08,2.1377]
[1717598953204,21.9904,173.1,173.07,2.1377]
[1717598953611,21.9904,173.1,173.08,2.1377]
[1717598953809,21.9904,173.1,173.08,47.1377]
[1717598954015,21.9904,173.1,173.09,2.1376]
[1717598954207,21.9904,173.1,173.09,45.0]
[1717598954617,21.9904,173.1,173.09,47.1376]
[1717598954994,21.9904,173.1,173.09,45.0]
[1717598955213,21.9904,173.1,173.01,0.4]
[1717598955214,6.2233,173.09,173.07,2.1378]
[1717598955921,6.2233,173.09,173.08,2.1377]
[1717598956111,2.1372,173.12,173.09,2.1375]
[1717598956419,21.3461,173.11,173.09,2.1375]
[1717598957821,6.0932,173.11,173.09,2.1375]
[1717598958123,2.137,173.14,173.1,2.1374]
[1717598958328,8.2165,173.14,173.1,2.1374]
[1717598958625,2.1371,173.13,173.1,2.1374]
[1717598959502,8.2165,173.14,173.1,2.1374]
[1717598959697,6.0795,173.14,173.1,2.1374]
[1717598959924,8.2165,173.14,173.1,2.1374]
[1717598960434,2.1371,173.13,173.09,2.1375]
[1717598960613,25.6734,173.15,173.1,2.1374]
[1717598960813,2.1371,173.13,173.1,2.1374]
[1717598961009,2.137,173.14,173.08,49.2754]
[1717598961322,2.1371,173.13,173.09,2.1375]
[1717598961519,2.1372,173.12,173.09,2.1375]
[1717598962227,2.1372,173.12,173.08,47.1376]
[1717598962426,2.1372,173.12,173.08,2.1376]
[1717598962725,2.1375,173.1,173.07,47.1378]
[1717598962933,2.1377,173.08,173.05,2.138]
[1717598963240,8.3538,173.1,173.06,2.1379]
[1717598963413,8.3538,173.1,173.04,4.2763]
[1717598963414,8.3538,173.1,173.07,2.1378]
[1717598963605,2.1375,173.1,173.07,2.1378]
[1717598963804,2.1377,173.09,173.03,8.553]
[1717598964108,2.1378,173.08,173.05,2.138]
[1717598964412,2.1376,173.09,173.05,2.138]
[1717598964609,8.6586,173.1,173.04,4.2763]
[1717598964808,2.1376,173.09,173.06,2.1379]
[1717598965109,2.1377,173.08,173.05,47.138]
[1717598965309,2.1377,173.08,173.05,2.138]
[1717598965619,2.1377,173.08,173.04,2.1381]
[1717598966110,2.1377,173.08,173.05,2.138]